[Event "GrandPrix_30.05"]
[Site "Chess.com"]
[Date "2020.05.30"]
[Round "3"]
[White "ZverevLev"]
[Black "FCLitras"]
[Result "0-1"]
[WhiteElo "2107"]
[BlackElo "2004"]
[TimeControl "600+2"]
[EndTime "9:17:54 PDT"]
[Termination "FCLitras won by checkmate"]

1. e4 {[%clk 0:09:42.1]} 1... c6 {[%clk 0:10:00.5]} 2. d4 {[%clk 0:09:39.6]}
2... d5 {[%clk 0:10:01.1]} 3. e5 {[%clk 0:09:38.7]} 3... Bf5 {[%clk 0:10:01.5]}
4. Nd2 {[%clk 0:09:36.8]} 4... e6 {[%clk 0:10:02]} 5. Nb3 {[%clk 0:09:36.7]}
5... Nd7 {[%clk 0:10:02.1]} 6. Be2 {[%clk 0:09:36.3]} 6... c5 {[%clk 0:09:45.6]}
7. dxc5 {[%clk 0:09:35.3]} 7... a6 {[%clk 0:09:40.3]} 8. Nf3 {[%clk 0:09:33.8]}
8... Nxc5 {[%clk 0:09:39.6]} 9. Nxc5 {[%clk 0:09:34.3]} 9... Bxc5 {[%clk
0:09:40.1]} 10. O-O {[%clk 0:09:35.2]} 10... Ne7 {[%clk 0:09:40.5]} 11. c3
{[%clk 0:09:35.2]} 11... O-O {[%clk 0:09:40.8]} 12. Nd4 {[%clk 0:09:32.7]} 12...
Bg6 {[%clk 0:09:36.2]} 13. f4 {[%clk 0:09:31.9]} 13... Be4 {[%clk 0:09:24]} 14.
Be3 {[%clk 0:09:30.2]} 14... Qc7 {[%clk 0:09:15]} 15. Qd2 {[%clk 0:09:28.3]}
15... Rac8 {[%clk 0:08:49.3]} 16. Kh1 {[%clk 0:09:27.9]} 16... Nf5 {[%clk
0:08:39.9]} 17. Nxf5 {[%clk 0:09:24.1]} 17... Bxf5 {[%clk 0:08:41]} 18. Bd4
{[%clk 0:09:23.5]} 18... Bxd4 {[%clk 0:08:37.4]} 19. Qxd4 {[%clk 0:09:25.4]}
19... Qc5 {[%clk 0:08:29.4]} 20. Rad1 {[%clk 0:09:24.6]} 20... b5 {[%clk
0:08:23.6]} 21. a3 {[%clk 0:09:18.2]} 21... a5 {[%clk 0:08:09.6]} 22. Qxc5
{[%clk 0:09:15.6]} 22... Rxc5 {[%clk 0:08:10.2]} 23. Rd4 {[%clk 0:09:17.2]}
23... Rb8 {[%clk 0:08:08.2]} 24. g4 {[%clk 0:09:11.7]} 24... Be4+ {[%clk
0:07:45.1]} 25. Kg1 {[%clk 0:09:11.5]} 25... h6 {[%clk 0:07:46.2]} 26. Kf2
{[%clk 0:09:11.7]} 26... f6 {[%clk 0:07:10.9]} 27. Ke3 {[%clk 0:09:07.8]} 27...
Kf7 {[%clk 0:07:11.4]} 28. g5 {[%clk 0:09:00.1]} 28... Bf5 {[%clk 0:06:58.6]}
29. gxf6 {[%clk 0:08:57.2]} 29... gxf6 {[%clk 0:06:59.2]} 30. Bh5+ {[%clk
0:08:57.6]} 30... Ke7 {[%clk 0:06:58.2]} 31. Rg1 {[%clk 0:08:57.1]} 31... fxe5
{[%clk 0:06:54.3]} 32. fxe5 {[%clk 0:08:59]} 32... b4 {[%clk 0:06:51.8]} 33.
axb4 {[%clk 0:08:54.9]} 33... axb4 {[%clk 0:06:52.4]} 34. Rg7+ {[%clk 0:08:53]}
34... Kf8 {[%clk 0:06:53.4]} 35. Rf7+ {[%clk 0:08:53.1]} 35... Kg8 {[%clk
0:06:54.6]} 36. cxb4 {[%clk 0:08:52.3]} 36... Rcb5 {[%clk 0:06:44.3]} 37. Rd2
{[%clk 0:08:31.2]} 37... Rxb4 {[%clk 0:06:35.6]} 38. Rg2+ {[%clk 0:08:29.5]}
38... Kh8 {[%clk 0:06:36.5]} 39. Bf3 {[%clk 0:07:57.5]} 39... d4+ {[%clk
0:05:53.2]} 40. Kf4 {[%clk 0:07:51.4]} 40... d3+ {[%clk 0:05:47.7]} 41. Ke3
{[%clk 0:07:52.1]} 41... Rxb2 {[%clk 0:05:47.6]} 42. Rf8+ {[%clk 0:07:38.4]}
42... Rxf8 {[%clk 0:05:45.2]} 43. Rxb2 {[%clk 0:07:38]} 43... Rd8 {[%clk
0:05:36.6]} 44. Rd2 {[%clk 0:07:37.9]} 44... Kg7 {[%clk 0:05:32.5]} 45. h4
{[%clk 0:07:35]} 45... Rb8 {[%clk 0:04:35.2]} 46. h5 {[%clk 0:07:33]} 46... Rb4
{[%clk 0:04:33.3]} 47. Ra2 {[%clk 0:07:27.1]} 47... Kf8 {[%clk 0:04:00.6]} 48.
Ra8+ {[%clk 0:07:25.2]} 48... Ke7 {[%clk 0:04:01.5]} 49. Ra7+ {[%clk 0:07:25.4]}
49... Kd8 {[%clk 0:04:01.1]} 50. Ra8+ {[%clk 0:07:26.4]} 50... Kc7 {[%clk
0:04:01.8]} 51. Rh8 {[%clk 0:07:27.9]} 51... Rb3 {[%clk 0:03:54.9]} 52. Bd1
{[%clk 0:07:20.4]} 52... Rb1 {[%clk 0:03:51.1]} 53. Bf3 {[%clk 0:07:19.8]} 53...
Re1+ {[%clk 0:03:47.7]} 54. Kd2 {[%clk 0:07:20.3]} 54... Rf1 {[%clk 0:03:35.1]}
55. Ke3 {[%clk 0:07:17.9]} 55... d2 {[%clk 0:03:28.5]} 56. Kxd2 {[%clk 0:07:16]}
56... Rxf3 {[%clk 0:03:29.1]} 57. Rxh6 {[%clk 0:07:16.6]} 57... Rh3 {[%clk
0:03:28.5]} 58. Rh8 {[%clk 0:07:15.8]} 58... Kc6 {[%clk 0:03:29.6]} 59. h6
{[%clk 0:07:16.2]} 59... Kd5 {[%clk 0:03:30.8]} 60. Ke2 {[%clk 0:07:15.5]} 60...
Kxe5 {[%clk 0:03:31.5]} 61. Kf2 {[%clk 0:07:16.6]} 61... Kf4 {[%clk 0:03:31.9]}
62. Kg2 {[%clk 0:07:15.8]} 62... e5 {[%clk 0:03:33.1]} 63. Kf2 {[%clk
0:06:52.4]} 63... e4 {[%clk 0:03:31.5]} 64. Kg2 {[%clk 0:06:53]} 64... Rh4
{[%clk 0:03:31.4]} 65. Kf2 {[%clk 0:06:51.9]} 65... e3+ {[%clk 0:03:31.4]} 66.
Kg1 {[%clk 0:06:53.1]} 66... Kf3 {[%clk 0:03:12.9]} 67. Rf8 {[%clk 0:06:52]}
67... Rg4+ {[%clk 0:03:10.6]} 68. Kh2 {[%clk 0:06:47.1]} 68... Rf4 {[%clk
0:03:06.8]} 69. h7 {[%clk 0:06:19.3]} 69... Bxh7 {[%clk 0:03:06.7]} 70. Rh8
{[%clk 0:06:20]} 70... Bf5 {[%clk 0:03:04.7]} 71. Rf8 {[%clk 0:06:17.9]} 71...
e2 {[%clk 0:03:04.3]} 72. Re8 {[%clk 0:06:04.7]} 72... Kf2 {[%clk 0:03:02.6]}
73. Ra8 {[%clk 0:05:53.1]} 73... Rh4# {[%clk 0:03:02.5]} 0-1

[Event "GrandPrix_30.05"]
[Site "Chess.com"]
[Date "2020.05.30"]
[Round "3"]
[White "cantdefyme"]
[Black "PlayChessSimple"]
[Result "0-1"]
[WhiteElo "1940"]
[BlackElo "2155"]
[TimeControl "600+2"]
[EndTime "9:18:04 PDT"]
[Termination "PlayChessSimple won on time"]

1. e4 {[%clk 0:10:01.9]} 1... e6 {[%clk 0:10:00.6]} 2. d4 {[%clk 0:10:02.4]}
2... d5 {[%clk 0:10:01.4]} 3. Nc3 {[%clk 0:10:03.8]} 3... Nf6 {[%clk 0:10:01.9]}
4. Bg5 {[%clk 0:10:04.1]} 4... Bb4 {[%clk 0:10:02.4]} 5. e5 {[%clk 0:10:03.4]}
5... h6 {[%clk 0:10:03.5]} 6. Bc1 {[%clk 0:10:04.9]} 6... Nfd7 {[%clk
0:09:49.6]} 7. Qg4 {[%clk 0:09:57.6]} 7... Bf8 {[%clk 0:09:49.1]} 8. Nce2 {[%clk
0:08:57.8]} 8... c5 {[%clk 0:09:47.4]} 9. c3 {[%clk 0:08:57.2]} 9... Nc6 {[%clk
0:09:48.5]} 10. Nf3 {[%clk 0:08:35.9]} 10... Qb6 {[%clk 0:09:40.2]} 11. dxc5
{[%clk 0:06:42.9]} 11... Nxc5 {[%clk 0:09:36.6]} 12. Ned4 {[%clk 0:06:42.4]}
12... Nxd4 {[%clk 0:08:53.3]} 13. cxd4 {[%clk 0:06:07.4]} 13... Ne4 {[%clk
0:08:50.2]} 14. Bd3 {[%clk 0:06:07.1]} 14... Qa5+ {[%clk 0:08:14.7]} 15. Kf1
{[%clk 0:04:59.4]} 15... Bd7 {[%clk 0:08:13.5]} 16. Bxe4 {[%clk 0:04:13.2]}
16... dxe4 {[%clk 0:08:09.9]} 17. Qxe4 {[%clk 0:04:14.5]} 17... Bc6 {[%clk
0:08:10.4]} 18. Qf4 {[%clk 0:04:15.5]} 18... Rd8 {[%clk 0:07:58.9]} 19. h4
{[%clk 0:02:03.1]} 19... Qb5+ {[%clk 0:06:00.7]} 20. Kg1 {[%clk 0:02:01.1]}
20... Qe2 {[%clk 0:06:01.6]} 21. Qe3 {[%clk 0:01:07.3]} 21... Qc2 {[%clk
0:05:53.3]} 22. Qc3 {[%clk 0:00:44.3]} 22... Qe4 {[%clk 0:05:23]} 23. Be3 {[%clk
0:00:26.2]} 23... Be7 {[%clk 0:05:18.3]} 24. Rh3 {[%clk 0:00:11.7]} 24... Rg8
{[%clk 0:05:11.2]} 25. h5 {[%clk 0:00:03.4]} 25... g5 {[%clk 0:05:11.6]} 26.
hxg6 {[%clk 0:00:03.9]} 26... Rxg6 {[%clk 0:05:11.2]} 0-1

[Event "GrandPrix_30.05"]
[Site "Chess.com"]
[Date "2020.05.30"]
[Round "3"]
[White "vladislavkovalev"]
[Black "rim1618"]
[Result "1-0"]
[WhiteElo "2798"]
[BlackElo "2362"]
[TimeControl "600+2"]
[EndTime "9:18:10 PDT"]
[Termination "vladislavkovalev won by resignation"]

1. e4 {[%clk 0:10:01.9]} 1... c6 {[%clk 0:09:59.4]} 2. Nf3 {[%clk 0:10:00.7]}
2... d5 {[%clk 0:09:57.9]} 3. Nc3 {[%clk 0:10:02.3]} 3... dxe4 {[%clk
0:09:58.3]} 4. Nxe4 {[%clk 0:10:04.2]} 4... Nf6 {[%clk 0:09:59.8]} 5. Qe2 {[%clk
0:10:05.4]} 5... Nxe4 {[%clk 0:09:59.6]} 6. Qxe4 {[%clk 0:10:07.3]} 6... Qd5
{[%clk 0:10:00.8]} 7. Qh4 {[%clk 0:10:08.1]} 7... Qe6+ {[%clk 0:09:59.8]} 8. Be2
{[%clk 0:10:09.2]} 8... Qg6 {[%clk 0:09:59.8]} 9. O-O {[%clk 0:10:09.7]} 9...
Qxc2 {[%clk 0:09:59.6]} 10. Bc4 {[%clk 0:10:02.7]} 10... Qf5 {[%clk 0:09:55.9]}
11. Re1 {[%clk 0:09:56]} 11... e6 {[%clk 0:09:44.6]} 12. Ne5 {[%clk 0:09:23.9]}
12... Nd7 {[%clk 0:08:25.8]} 13. Nxf7 {[%clk 0:09:02.4]} 13... Kxf7 {[%clk
0:08:24.5]} 14. Bxe6+ {[%clk 0:08:56.2]} 14... Qxe6 {[%clk 0:08:22.8]} 15. Rxe6
{[%clk 0:08:58.1]} 15... Kxe6 {[%clk 0:08:24.1]} 16. Qc4+ {[%clk 0:08:43.6]}
16... Ke7 {[%clk 0:07:33.5]} 17. b3 {[%clk 0:08:38.8]} 17... Kd8 {[%clk
0:06:53.4]} 18. Bb2 {[%clk 0:08:26]} 18... Bd6 {[%clk 0:06:23.9]} 19. Re1 {[%clk
0:08:03.3]} 19... Kc7 {[%clk 0:06:05.2]} 20. Qf7 {[%clk 0:07:59.1]} 20... Rf8
{[%clk 0:05:48.6]} 21. Qxg7 {[%clk 0:07:58.6]} 21... b6 {[%clk 0:05:16.8]} 22.
Be5 {[%clk 0:06:55.5]} 22... Bxe5 {[%clk 0:04:54.6]} 23. Rxe5 {[%clk 0:06:57.4]}
23... Rf6 {[%clk 0:04:08.2]} 24. Re7 {[%clk 0:06:23]} 24... Rf5 {[%clk
0:03:15.6]} 25. Qg3+ {[%clk 0:05:52.9]} 25... Kb7 {[%clk 0:03:16.3]} 26. Rxh7
{[%clk 0:05:47.6]} 26... Rd5 {[%clk 0:03:17]} 27. h4 {[%clk 0:05:47.1]} 27...
Ka6 {[%clk 0:03:03.3]} 28. Qc7 {[%clk 0:05:10.7]} 28... Nf6 {[%clk 0:01:25.5]}
29. Qxc6 {[%clk 0:05:06.6]} 29... Bf5 {[%clk 0:00:57.4]} 30. Qa4+ {[%clk
0:04:54.2]} 30... Ra5 {[%clk 0:00:56.7]} 31. Qc4+ {[%clk 0:04:55.8]} 31... Rb5
{[%clk 0:00:51.4]} 32. a4 {[%clk 0:04:57.1]} 1-0

[Event "GrandPrix_30.05"]
[Site "Chess.com"]
[Date "2020.05.30"]
[Round "3"]
[White "fujiwara_hoga"]
[Black "Azatic"]
[Result "0-1"]
[WhiteElo "2136"]
[BlackElo "2383"]
[TimeControl "600+2"]
[EndTime "9:18:20 PDT"]
[Termination "Azatic won by resignation"]

1. d4 {[%clk 0:10:01.9]} 1... Nf6 {[%clk 0:10:00.7]} 2. c4 {[%clk 0:10:01.2]}
2... g6 {[%clk 0:10:01.7]} 3. Nc3 {[%clk 0:10:01.1]} 3... Bg7 {[%clk 0:10:02.6]}
4. e4 {[%clk 0:10:01.4]} 4... O-O {[%clk 0:10:01.7]} 5. Be2 {[%clk 0:10:01.9]}
5... d6 {[%clk 0:10:00.8]} 6. Be3 {[%clk 0:10:02]} 6... Na6 {[%clk 0:09:56.1]}
7. Nf3 {[%clk 0:09:59.6]} 7... e5 {[%clk 0:09:55.4]} 8. O-O {[%clk 0:09:57.4]}
8... Ng4 {[%clk 0:09:50.9]} 9. Bg5 {[%clk 0:09:55]} 9... Qe8 {[%clk 0:09:50]}
10. dxe5 {[%clk 0:09:27]} 10... h6 {[%clk 0:08:57.4]} 11. Bd2 {[%clk 0:09:09]}
11... dxe5 {[%clk 0:08:52.1]} 12. h3 {[%clk 0:09:05.6]} 12... Nf6 {[%clk
0:08:52]} 13. Be3 {[%clk 0:09:05]} 13... Nh5 {[%clk 0:08:35.3]} 14. c5 {[%clk
0:08:56.6]} 14... c6 {[%clk 0:07:37.6]} 15. Nd2 {[%clk 0:08:33.6]} 15... Nf4
{[%clk 0:07:34.7]} 16. Bxa6 {[%clk 0:08:33.3]} 16... bxa6 {[%clk 0:07:35.1]} 17.
Nc4 {[%clk 0:08:33.2]} 17... Be6 {[%clk 0:07:17.4]} 18. Nd6 {[%clk 0:08:31.7]}
18... Qe7 {[%clk 0:07:16]} 19. Qa4 {[%clk 0:07:16.2]} 19... Qg5 {[%clk
0:06:31.4]} 20. Bxf4 {[%clk 0:06:22.4]} 20... exf4 {[%clk 0:06:33.3]} 21. Kh1
{[%clk 0:05:45.3]} 21... f3 {[%clk 0:05:55.6]} 22. Rg1 {[%clk 0:05:44.2]} 22...
Qxc5 {[%clk 0:05:30]} 23. Rad1 {[%clk 0:05:26.3]} 23... Qxf2 {[%clk 0:05:08.3]}
24. Qxc6 {[%clk 0:05:17]} 24... Be5 {[%clk 0:04:16.8]} 25. Nxf7 {[%clk
0:04:15.4]} 25... Bxf7 {[%clk 0:03:56.4]} 26. Nd5 {[%clk 0:03:57.2]} 26... Rad8
{[%clk 0:03:05.8]} 27. Qc1 {[%clk 0:03:10.6]} 27... Bxd5 {[%clk 0:02:46.4]} 28.
Qxh6 {[%clk 0:02:55]} 28... Qg3 {[%clk 0:02:17]} 0-1

[Event "GrandPrix_30.05"]
[Site "Chess.com"]
[Date "2020.05.30"]
[Round "3"]
[White "kirillshevchenko"]
[Black "ZEN-22"]
[Result "1-0"]
[WhiteElo "2687"]
[BlackElo "2195"]
[TimeControl "600+2"]
[EndTime "9:18:26 PDT"]
[Termination "kirillshevchenko won by resignation"]

1. e4 {[%clk 0:10:01.9]} 1... e5 {[%clk 0:09:54.2]} 2. Nf3 {[%clk 0:10:02.1]}
2... Nc6 {[%clk 0:09:52.4]} 3. Bb5 {[%clk 0:10:02.2]} 3... f5 {[%clk 0:09:51.9]}
4. d3 {[%clk 0:09:59.3]} 4... Nf6 {[%clk 0:09:30.2]} 5. O-O {[%clk 0:09:53.7]}
5... fxe4 {[%clk 0:09:06.9]} 6. dxe4 {[%clk 0:09:55.6]} 6... d6 {[%clk 0:09:06]}
7. Nc3 {[%clk 0:08:51.4]} 7... Be7 {[%clk 0:08:41.7]} 8. Bc4 {[%clk 0:08:26.8]}
8... Na5 {[%clk 0:08:40.8]} 9. Be2 {[%clk 0:07:59.2]} 9... O-O {[%clk
0:08:35.4]} 10. Nd5 {[%clk 0:07:37.9]} 10... Kh8 {[%clk 0:08:20.9]} 11. Nxf6
{[%clk 0:06:35.5]} 11... Bxf6 {[%clk 0:08:02.3]} 12. b4 {[%clk 0:06:32.8]} 12...
Nc6 {[%clk 0:08:02.1]} 13. b5 {[%clk 0:06:34.4]} 13... Ne7 {[%clk 0:07:45]} 14.
Be3 {[%clk 0:05:43.5]} 14... b6 {[%clk 0:06:42.6]} 15. c4 {[%clk 0:05:38.6]}
15... Bb7 {[%clk 0:06:34.8]} 16. Nd2 {[%clk 0:05:38.8]} 16... a6 {[%clk
0:06:30.5]} 17. a4 {[%clk 0:05:34.6]} 17... a5 {[%clk 0:06:05.7]} 18. Bg4 {[%clk
0:04:39.5]} 18... Ng6 {[%clk 0:05:41.9]} 19. g3 {[%clk 0:04:37.4]} 19... Bg5
{[%clk 0:05:42.1]} 20. Qe2 {[%clk 0:04:33.1]} 20... Bxe3 {[%clk 0:05:41.3]} 21.
Qxe3 {[%clk 0:04:34.3]} 21... Rf6 {[%clk 0:05:42.5]} 22. Nb1 {[%clk 0:04:22.6]}
22... Qe7 {[%clk 0:05:39.5]} 23. Nc3 {[%clk 0:04:22]} 23... Raf8 {[%clk
0:05:39.4]} 24. Rac1 {[%clk 0:04:17.2]} 24... Qd8 {[%clk 0:05:33.2]} 25. Nd5
{[%clk 0:04:12.8]} 25... R6f7 {[%clk 0:05:32.8]} 26. Bh5 {[%clk 0:04:01.6]}
26... Bxd5 {[%clk 0:04:46.8]} 27. cxd5 {[%clk 0:04:01.7]} 27... Rf6 {[%clk
0:04:46.4]} 28. Rc2 {[%clk 0:03:56.4]} 28... R8f7 {[%clk 0:04:37.3]} 29. Rfc1
{[%clk 0:03:53.8]} 29... Re7 {[%clk 0:04:37.9]} 30. Bg4 {[%clk 0:03:27.1]} 30...
Nf8 {[%clk 0:04:38]} 31. Rc4 {[%clk 0:03:23.6]} 31... g6 {[%clk 0:04:35.5]} 32.
R1c2 {[%clk 0:03:22.3]} 32... h5 {[%clk 0:04:33.8]} 33. Bh3 {[%clk 0:03:23.1]}
33... Kg7 {[%clk 0:04:32.3]} 34. Qg5 {[%clk 0:03:12.8]} 34... Nh7 {[%clk
0:04:21.2]} 35. Qc1 {[%clk 0:03:13.4]} 35... Kh8 {[%clk 0:04:20.7]} 36. Rxc7
{[%clk 0:03:12.3]} 36... Rxc7 {[%clk 0:04:20.4]} 37. Rxc7 {[%clk 0:03:13]} 37...
Rf8 {[%clk 0:04:16.9]} 38. Rc8 {[%clk 0:02:59.3]} 38... Qf6 {[%clk 0:04:16.9]}
39. Rxf8+ {[%clk 0:02:57.9]} 39... Qxf8 {[%clk 0:03:59.1]} 40. Kg2 {[%clk
0:02:46.9]} 40... h4 {[%clk 0:03:58.8]} 41. Be6 {[%clk 0:02:32.2]} 41... Kg7
{[%clk 0:03:53.8]} 42. Qc7+ {[%clk 0:02:31.3]} 42... Kf6 {[%clk 0:03:38.9]} 43.
Qxh7 {[%clk 0:02:31]} 1-0

[Event "GrandPrix_30.05"]
[Site "Chess.com"]
[Date "2020.05.30"]
[Round "3"]
[White "Durarbayli"]
[Black "Kobalia"]
[Result "1/2-1/2"]
[WhiteElo "2544"]
[BlackElo "2412"]
[TimeControl "600+2"]
[EndTime "9:18:41 PDT"]
[Termination "Game drawn by agreement"]

1. e4 {[%clk 0:10:01.9]} 1... c6 {[%clk 0:10:00.6]} 2. Nf3 {[%clk 0:10:01.6]}
2... d5 {[%clk 0:10:01.5]} 3. Nc3 {[%clk 0:10:02.8]} 3... Bg4 {[%clk 0:10:01.3]}
4. h3 {[%clk 0:10:03.5]} 4... Bxf3 {[%clk 0:10:02.3]} 5. Qxf3 {[%clk 0:10:05.4]}
5... e6 {[%clk 0:10:03.6]} 6. d3 {[%clk 0:10:06.3]} 6... Nd7 {[%clk 0:09:50.3]}
7. Bd2 {[%clk 0:10:00]} 7... g6 {[%clk 0:09:48.1]} 8. g4 {[%clk 0:09:37.9]} 8...
Bg7 {[%clk 0:09:46.9]} 9. Qg3 {[%clk 0:09:35.7]} 9... Qb6 {[%clk 0:08:20.5]} 10.
O-O-O {[%clk 0:09:30.9]} 10... Nc5 {[%clk 0:08:15.8]} 11. e5 {[%clk 0:06:21.3]}
11... d4 {[%clk 0:08:11.8]} 12. Ne2 {[%clk 0:06:16.2]} 12... O-O-O {[%clk
0:08:09.9]} 13. f4 {[%clk 0:06:10.6]} 13... Ne7 {[%clk 0:08:06.7]} 14. Qg1
{[%clk 0:05:58.4]} 14... Na4 {[%clk 0:07:27.2]} 15. b3 {[%clk 0:05:48.3]} 15...
Nc5 {[%clk 0:07:27.4]} 16. Kb1 {[%clk 0:05:34.5]} 16... Na6 {[%clk 0:07:22.7]}
17. c4 {[%clk 0:04:47.4]} 17... dxc3 {[%clk 0:07:00.8]} 18. Qxb6 {[%clk
0:04:42.1]} 18... axb6 {[%clk 0:07:00.6]} 19. Nxc3 {[%clk 0:04:39.9]} 19... Nc5
{[%clk 0:06:32.5]} 20. Be3 {[%clk 0:03:57.1]} 20... Nd5 {[%clk 0:06:09.6]} 21.
Nxd5 {[%clk 0:03:55]} 21... Rxd5 {[%clk 0:06:10.4]} 22. d4 {[%clk 0:03:43.9]}
22... Ne4 {[%clk 0:05:54.3]} 23. Kb2 {[%clk 0:02:30.1]} 23... Ng3 {[%clk
0:05:53.3]} 24. Bg2 {[%clk 0:02:30.5]} 24... Nxh1 {[%clk 0:05:54.2]} 25. Bxd5
{[%clk 0:02:30.7]} 25... cxd5 {[%clk 0:05:44.2]} 26. Rxh1 {[%clk 0:02:28.2]}
26... h5 {[%clk 0:05:45.3]} 27. Rc1+ {[%clk 0:02:20.6]} 27... Kb8 {[%clk
0:05:44]} 28. f5 {[%clk 0:01:45.1]} 28... hxg4 {[%clk 0:05:33.2]} 29. fxe6
{[%clk 0:01:06.7]} 29... fxe6 {[%clk 0:04:35.7]} 30. hxg4 {[%clk 0:01:07.1]}
30... Rh2+ {[%clk 0:04:35]} 31. Rc2 {[%clk 0:01:00.6]} 31... Rxc2+ {[%clk
0:04:27.5]} 32. Kxc2 {[%clk 0:01:02.5]} 32... b5 {[%clk 0:04:28.5]} 1/2-1/2

[Event "GrandPrix_30.05"]
[Site "Chess.com"]
[Date "2020.05.30"]
[Round "3"]
[White "rfhfb"]
[Black "ArnaudovP"]
[Result "0-1"]
[WhiteElo "2117"]
[BlackElo "2271"]
[TimeControl "600+2"]
[EndTime "9:18:42 PDT"]
[Termination "ArnaudovP won by resignation"]

1. d4 {[%clk 0:10:01.9]} 1... Nf6 {[%clk 0:09:59.8]} 2. c4 {[%clk 0:10:00]} 2...
Nc6 {[%clk 0:09:59.6]} 3. Nf3 {[%clk 0:10:00.4]} 3... e6 {[%clk 0:09:59.3]} 4.
g3 {[%clk 0:10:01.2]} 4... Bb4+ {[%clk 0:09:59.3]} 5. Bd2 {[%clk 0:10:02.8]}
5... Qe7 {[%clk 0:09:59.9]} 6. Bg2 {[%clk 0:10:03.7]} 6... Bxd2+ {[%clk
0:09:55.6]} 7. Qxd2 {[%clk 0:10:02.7]} 7... Ne4 {[%clk 0:09:54]} 8. Qc2 {[%clk
0:08:08.2]} 8... Qb4+ {[%clk 0:09:53]} 9. Kf1 {[%clk 0:08:09.2]} 9... d5 {[%clk
0:09:52.5]} 10. Na3 {[%clk 0:07:01.8]} 10... O-O {[%clk 0:09:42.8]} 11. Qb3
{[%clk 0:05:46.6]} 11... Qd6 {[%clk 0:09:41.1]} 12. e3 {[%clk 0:05:13]} 12... a6
{[%clk 0:09:40]} 13. Kg1 {[%clk 0:05:03.7]} 13... Bd7 {[%clk 0:08:59.7]} 14. Rc1
{[%clk 0:04:29.8]} 14... Rab8 {[%clk 0:08:53.4]} 15. cxd5 {[%clk 0:03:40.6]}
15... exd5 {[%clk 0:08:52.9]} 16. Nb1 {[%clk 0:03:32.3]} 16... Rfe8 {[%clk
0:08:34]} 17. Nbd2 {[%clk 0:03:32]} 17... Nxd2 {[%clk 0:08:11.7]} 18. Nxd2
{[%clk 0:03:33.9]} 18... Ne7 {[%clk 0:08:11.8]} 19. Qa3 {[%clk 0:03:22.1]} 19...
Qxa3 {[%clk 0:07:54.6]} 20. bxa3 {[%clk 0:03:24]} 20... c6 {[%clk 0:07:50.3]}
21. Bf1 {[%clk 0:03:07.8]} 21... Bf5 {[%clk 0:07:49.1]} 22. Kg2 {[%clk
0:03:06.6]} 22... Nc8 {[%clk 0:07:45.2]} 23. Be2 {[%clk 0:03:05.8]} 23... Nd6
{[%clk 0:07:45.5]} 24. a4 {[%clk 0:02:55]} 24... g5 {[%clk 0:07:37.3]} 25. a5
{[%clk 0:02:48.9]} 25... Kg7 {[%clk 0:07:37.6]} 26. Nb3 {[%clk 0:02:40.5]} 26...
h6 {[%clk 0:07:32]} 27. Nc5 {[%clk 0:02:39.3]} 27... Re7 {[%clk 0:07:29.6]} 28.
g4 {[%clk 0:02:34]} 28... Be4+ {[%clk 0:07:25.7]} 29. Bf3 {[%clk 0:02:35.2]}
29... Bxf3+ {[%clk 0:07:23.2]} 30. Kxf3 {[%clk 0:02:36.7]} 30... f5 {[%clk
0:07:20]} 31. h3 {[%clk 0:02:26.1]} 31... Rf8 {[%clk 0:07:19.2]} 32. Kg2 {[%clk
0:02:22.6]} 32... f4 {[%clk 0:07:18.2]} 33. Rhe1 {[%clk 0:02:16.1]} 33... fxe3
{[%clk 0:07:16.3]} 34. Rxe3 {[%clk 0:02:04.3]} 34... Rfe8 {[%clk 0:07:16]} 35.
Rb3 {[%clk 0:01:53]} 35... Rf8 {[%clk 0:07:07.6]} 36. Rc2 {[%clk 0:01:50.4]}
36... Rff7 {[%clk 0:07:05.5]} 37. Rb4 {[%clk 0:01:25.5]} 37... Nc4 {[%clk
0:07:01.3]} 38. Nb3 {[%clk 0:01:26.1]} 38... Rf4 {[%clk 0:06:57]} 39. a4 {[%clk
0:01:16.8]} 39... Ref7 {[%clk 0:06:52.5]} 40. Re2 {[%clk 0:01:12.7]} 40... Kf8
{[%clk 0:06:47]} 41. Nc5 {[%clk 0:01:11.9]} 41... Kg8 {[%clk 0:06:28.9]} 42.
Nxb7 {[%clk 0:00:57.4]} 42... Rxd4 {[%clk 0:06:26.8]} 43. Nc5 {[%clk 0:00:58.8]}
43... Ne3+ {[%clk 0:06:25.2]} 44. Rxe3 {[%clk 0:00:59.8]} 44... Rxb4 {[%clk
0:06:26.2]} 45. Re6 {[%clk 0:00:25.3]} 45... Rb2 {[%clk 0:06:18.1]} 46. Rxc6
{[%clk 0:00:24.3]} 46... Rbxf2+ {[%clk 0:06:16.3]} 47. Kg1 {[%clk 0:00:24.8]}
47... Rc2 {[%clk 0:06:13.7]} 48. Rc8+ {[%clk 0:00:10]} 48... Kh7 {[%clk
0:06:14.3]} 49. Rc6 {[%clk 0:00:08]} 49... d4 {[%clk 0:06:13.2]} 0-1

[Event "GrandPrix_30.05"]
[Site "Chess.com"]
[Date "2020.05.30"]
[Round "3"]
[White "Nodar_Lortkipanidze"]
[Black "RussianChessFighter"]
[Result "0-1"]
[WhiteElo "2446"]
[BlackElo "2268"]
[TimeControl "600+2"]
[EndTime "9:18:45 PDT"]
[Termination "RussianChessFighter won by resignation"]

1. e4 {[%clk 0:10:01.9]} 1... e5 {[%clk 0:09:57.5]} 2. Nf3 {[%clk 0:10:02.7]}
2... Nc6 {[%clk 0:09:57.9]} 3. d4 {[%clk 0:10:03.5]} 3... exd4 {[%clk
0:09:58.4]} 4. Nxd4 {[%clk 0:10:05.4]} 4... Bc5 {[%clk 0:09:59.5]} 5. Be3 {[%clk
0:10:06.6]} 5... Qf6 {[%clk 0:10:00.4]} 6. c3 {[%clk 0:10:03.4]} 6... Nge7
{[%clk 0:10:00.6]} 7. g3 {[%clk 0:10:03.7]} 7... d5 {[%clk 0:08:41.9]} 8. Nd2
{[%clk 0:09:47.3]} 8... Bxd4 {[%clk 0:07:03.8]} 9. cxd4 {[%clk 0:09:46.4]} 9...
Nxd4 {[%clk 0:07:04.5]} 10. Bg2 {[%clk 0:09:31.4]} 10... Be6 {[%clk 0:05:55.7]}
11. O-O {[%clk 0:09:23.4]} 11... Ndc6 {[%clk 0:05:26.2]} 12. exd5 {[%clk
0:08:34.2]} 12... Bxd5 {[%clk 0:05:17.9]} 13. Ne4 {[%clk 0:08:17.6]} 13... Qg6
{[%clk 0:05:12.8]} 14. Qa4 {[%clk 0:07:04.8]} 14... O-O {[%clk 0:05:00.7]} 15.
Rad1 {[%clk 0:07:01.1]} 15... Rfd8 {[%clk 0:04:44]} 16. Bf4 {[%clk 0:06:45.1]}
16... Rac8 {[%clk 0:03:58.9]} 17. a3 {[%clk 0:06:37.5]} 17... b6 {[%clk
0:03:13.2]} 18. Rfe1 {[%clk 0:06:21.8]} 18... Na5 {[%clk 0:02:37]} 19. Nf6+
{[%clk 0:04:15.8]} 19... Qxf6 {[%clk 0:02:19.9]} 20. Bxd5 {[%clk 0:04:16.5]}
20... Nxd5 {[%clk 0:01:57.8]} 21. Rxd5 {[%clk 0:04:17.5]} 21... Qc6 {[%clk
0:01:19.7]} 22. Qxc6 {[%clk 0:04:12.4]} 22... Nxc6 {[%clk 0:01:19.5]} 23. Rxd8+
{[%clk 0:04:13.9]} 23... Rxd8 {[%clk 0:01:21.1]} 24. Bxc7 {[%clk 0:04:15.4]}
24... Rc8 {[%clk 0:01:22.6]} 25. Bf4 {[%clk 0:04:15.9]} 25... f6 {[%clk
0:01:23.4]} 26. Rd1 {[%clk 0:04:15.1]} 26... Rd8 {[%clk 0:01:22.2]} 27. Rc1
{[%clk 0:04:15.8]} 27... Nd4 {[%clk 0:01:03]} 28. Be3 {[%clk 0:04:04.9]} 28...
Ne2+ {[%clk 0:01:03]} 29. Kg2 {[%clk 0:03:59.4]} 29... Nxc1 {[%clk 0:01:04.9]}
30. Bxc1 {[%clk 0:04:01.1]} 30... Kf7 {[%clk 0:01:06.3]} 31. Be3 {[%clk
0:03:59.8]} 31... Ke6 {[%clk 0:01:07.5]} 32. Kf3 {[%clk 0:04:01.3]} 32... Kd5
{[%clk 0:01:09]} 33. Ke2 {[%clk 0:04:02.8]} 33... Kc4 {[%clk 0:01:10.5]} 0-1